{"text_format":"3","workbook":"xlsx","n_sheets":3,"sheets":["Student List","Class Roster","Student Details"],"not_rendered":{"images":2,"defined_names":8},"read":"whole","date_system":"1900"}

{"sheet":"Student List","index":0,"n_rows":8,"n_cols":13,"rows_kept":8,"merged":[[1,2,2,3],[1,4,1,11],[2,4,2,11],[6,12,8,16]]}
[]
[null,null,"Lista studenata",null,"IDI NA SPISAK STUDENATA U ODELJENJU"]
[{"$nulls":4},"IDI NA DETALJE O STUDENTIMA"]
[null,null,"IME STUDENTA","ADRESA E-POŠTE","TELEFON KOD KUĆE","MOBILNI TELEFON","Datum rođenja","KONTAKT ZA HITNE SLUČAJEVE","BROJ TELEFONA ZA HITNE SLUČAJEVE","LEKAR","BROJ TELEFONA LEKARA","  "]
[null,null,"Ime 1","Adresa e-pošte","Telefon kod kuće","Mobilni telefon","Datum","Kontakt 1","Broj telefona za hitne slučajeve","Lekar 1","Broj telefona lekara"]
[null,null,"Ime 2","Adresa e-pošte","Telefon kod kuće","Mobilni telefon","Datum","Kontakt 2","Broj telefona za hitne slučajeve","Lekar 2","Broj telefona lekara"]
[null,null,"Ime 3","Adresa e-pošte","Telefon kod kuće","Mobilni telefon","Datum","Kontakt 3","Broj telefona za hitne slučajeve","Lekar 3","Broj telefona lekara",null,"Savet: Da biste dodali još studenata, u poslednjoj ćeliji tabele pritisnite taster Tab."]
[null,null,"Ime 4","Adresa e-pošte","Telefon kod kuće","Mobilni telefon","Datum","Kontakt 4","Broj telefona za hitne slučajeve","Lekar 4","Broj telefona lekara"]

{"sheet":"Class Roster","index":1,"n_rows":12,"n_cols":7,"rows_kept":12,"merged":[[1,2,2,2],[1,3,2,3],[1,4,1,6],[2,4,2,6]]}
[]
[null,null,"Spisak studenata u odeljenju","Institut za grafički dizajn","IDI NA LISTU STUDENATA"]
[{"$nulls":4},"IDI NA DETALJE O STUDENTIMA"]
[null,null,"KURS","Ime kursa","DATUM POČETKA","Datum"]
[null,null,"INSTRUKTOR","Instruktor 1","DATUM ZAVRŠETKA","Datum"]
[null,null,"UPISANI STUDENTI",{"$f":"COUNTA(StudentRoster[IME STUDENTA])","v":4}]
[]
[null,null,"IME STUDENTA","ADRESA E-POŠTE","TELEFON KOD KUĆE","MOBILNI TELEFON","  "]
[null,null,"Ime 1",{"$f":"IFERROR(VLOOKUP(StudentRoster[[#This Row],[STUDENT NAME]],Students[],2),\"\")","v":"Email address"},{"$f":"IFERROR(VLOOKUP(StudentRoster[[#This Row],[STUDENT NAME]],Students[],3),\"\")","v":"Home phone"},{"$f":"IFERROR(VLOOKUP(StudentRoster[[#This Row],[STUDENT NAME]],Students[],4),\"\")","v":"Cell phone"}]
[null,null,"Ime 2",{"$f":"IFERROR(VLOOKUP(StudentRoster[[#This Row],[STUDENT NAME]],Students[],2),\"\")","v":"Email address"},{"$f":"IFERROR(VLOOKUP(StudentRoster[[#This Row],[STUDENT NAME]],Students[],3),\"\")","v":"Home phone"},{"$f":"IFERROR(VLOOKUP(StudentRoster[[#This Row],[STUDENT NAME]],Students[],4),\"\")","v":"Cell phone"}]
[null,null,"Ime 3",{"$f":"IFERROR(VLOOKUP(StudentRoster[[#This Row],[STUDENT NAME]],Students[],2),\"\")","v":"Email address"},{"$f":"IFERROR(VLOOKUP(StudentRoster[[#This Row],[STUDENT NAME]],Students[],3),\"\")","v":"Home phone"},{"$f":"IFERROR(VLOOKUP(StudentRoster[[#This Row],[STUDENT NAME]],Students[],4),\"\")","v":"Cell phone"}]
[null,null,"Ime 4",{"$f":"IFERROR(VLOOKUP(StudentRoster[[#This Row],[STUDENT NAME]],Students[],2),\"\")","v":"Email address"},{"$f":"IFERROR(VLOOKUP(StudentRoster[[#This Row],[STUDENT NAME]],Students[],3),\"\")","v":"Home phone"},{"$f":"IFERROR(VLOOKUP(StudentRoster[[#This Row],[STUDENT NAME]],Students[],4),\"\")","v":"Cell phone"}]

{"sheet":"Student Details","index":2,"n_rows":13,"n_cols":4,"rows_kept":13,"merged":[[1,2,2,2],[1,3,1,4],[2,3,2,4],[3,2,3,3]]}
[]
[null,null,"Detalji o studentima","IDI NA LISTU STUDENATA"]
[{"$nulls":3},"IDI NA SPISAK STUDENATA U ODELJENJU"]
[null,null,"SAVET: IZABERITE STUDENTA SA PADAJUĆE LISTE U ĆELIJI D5 DA BISTE AŽURIRALI DETALJE O STUDENTU"]
[null,null,"IME STUDENTA","Ime 1"]
[null,null,"ADRESA E-POŠTE",{"$f":"IFERROR(VLOOKUP(StudentName,Students[],2,FALSE),\"\")","v":"Email address"}]
[null,null,"TELEFON KOD KUĆE",{"$f":"IFERROR(VLOOKUP(StudentName,Students[],3,FALSE),\"\")","v":"Home phone"}]
[null,null,"MOBILNI TELEFON",{"$f":"IFERROR(VLOOKUP(StudentName,Students[],4,FALSE),\"\")","v":"Cell phone"}]
[null,null,"Datum rođenja",{"$f":"IFERROR(VLOOKUP(StudentName,Students[],5,FALSE),\"\")","v":"Date"}]
[null,null,"KONTAKT ZA HITNE SLUČAJEVE",{"$f":"IFERROR(VLOOKUP(StudentName,Students[],6,FALSE),\"\")","v":"Contact 1"}]
[null,null,"BROJ TELEFONA ZA HITNE SLUČAJEVE",{"$f":"IFERROR(VLOOKUP(StudentName,Students[],7,FALSE),\"\")","v":"Emergency phone"}]
[null,null,"LEKAR",{"$f":"IFERROR(VLOOKUP(StudentName,Students[],8,FALSE),\"\")","v":"Physician 1"}]
[null,null,"BROJ TELEFONA LEKARA",{"$f":"IFERROR(VLOOKUP(StudentName,Students[],9,FALSE),\"\")","v":"Physician phone"}]